bitfinex/quotes_SOLUSD_20250517
["timestamp","ask_amount","ask_price","bid_price","bid_amount"]
[1747450898668,5.40086413,166.64,166.58,26.0]
[1747450907709,7.60247683,166.63,166.58,26.0]
[1747450908606,5.40151242,166.62,166.58,26.0]
[1747450909390,5.40151242,166.62,166.58,27.6032]
[1747450910712,5.40086413,166.64,166.58,27.6032]
[1747450912023,26.5055013,166.64,166.58,27.6032]
[1747450912384,7.60247683,166.63,166.58,27.6032]
[1747450913005,5.40151242,166.62,166.58,27.6032]
[1747450914213,5.40118826,166.63,166.58,27.6032]
[1747450915503,21.10267964,166.67,166.58,33.60629361]
[1747450916085,7.60247683,166.66,166.58,33.60629361]
[1747450916826,26.50257164,166.67,166.58,33.60629361]
[1747450917005,5.399892,166.67,166.59,6.2093]
[1747450917332,5.399892,166.67,166.62,26.0]
[1747450918623,5.39956803,166.68,166.62,26.0]
[1747450922126,7.60247683,166.66,166.6,26.0]
[1747450922425,7.60247683,166.66,166.59,140.9093]
[1747450922925,5.40054005,166.65,166.59,140.9093]
[1747450924900,5.40054005,166.65,166.59,134.7]
[1747450924901,26.50436701,166.65,166.59,134.7]
[1747450925695,7.60247683,166.64,166.59,134.7]
[1747450926227,5.40118826,166.63,166.59,134.7]
[1747450926420,5.40118826,166.63,166.58,27.6032]
[1747450927131,13.50135013,166.65,166.58,27.6032]
[1747450927132,21.10382696,166.65,166.58,27.6032]
[1747450928602,5.399892,166.67,166.61,26.0]
[1747450929131,5.39956803,166.68,166.61,38.29766893]
[1747450932543,5.39956803,166.68,166.61,32.2957]
[1747450934050,5.39956803,166.68,166.61,38.2977017]
[1747450935533,5.39956803,166.68,166.61,32.2957]
[1747450936754,7.60247683,166.67,166.59,26.0]
[1747450936961,7.60247683,166.67,166.59,46.46]
[1747450937950,5.400216,166.66,166.59,46.46]
[1747450938176,7.60247683,166.63,166.58,136.3032]
[1747450938465,7.60247683,166.61,166.57,46.52]
[1747450938620,7.60247683,166.63,166.57,46.52]
[1747450940257,5.40151242,166.62,166.57,46.52]
[1747450941453,5.40054005,166.65,166.58,1.5636]
[1747450942062,5.40054005,166.65,166.6,26.0]
[1747450942363,13.00204486,166.68,166.6,32.00239907]
[1747450942572,13.00204486,166.68,166.6,26.0]
[1747450946676,7.60247683,166.64,166.58,162.2636]
[1747450946877,7.60247683,166.64,166.58,27.5636]
[1747450949090,5.40118826,166.63,166.58,27.5636]
[1747450949285,13.00366509,166.63,166.58,27.5636]
[1747450949476,7.60247683,166.62,166.58,27.5636]
[1747450949668,7.60247683,166.62,166.58,26.0]
[1747450950889,5.40118826,166.63,166.58,26.0]
[1747450951073,13.00366509,166.63,166.58,26.0]
[1747450955589,13.50270301,166.64,166.58,26.0]
[1747450955766,21.10517984,166.64,166.58,26.0]
[1747450956277,5.400216,166.66,166.58,26.0]
[1747450957006,5.400216,166.66,166.59,1.652]
[1747450957499,5.400216,166.66,166.59,7.65469232]
[1747450957996,13.00269283,166.66,166.59,1.652]
[1747450958204,7.60247683,166.65,166.59,1.652]
[1747450958708,5.400216,166.66,166.59,1.652]
[1747450958922,5.400216,166.66,166.59,7.65472427]
[1747450959207,5.400216,166.66,166.59,28.09472427]
[1747450959374,1.4,166.74,166.65,26.0]
[1747450959568,5.39794877,166.73,166.66,1.652]
[1747450961803,5.39762504,166.74,166.67,5.99988]
[1747450962704,13.00010187,166.74,166.67,5.99988]
[1747450965207,13.00010187,166.74,166.66,1.652]
[1747450965518,7.60247683,166.71,166.66,1.652]
[1747450966009,7.60247683,166.72,166.66,1.652]
[1747450966382,5.39859636,166.71,166.66,1.652]
[1747450967108,1.4,166.75,166.66,7.65222768]
[1747450967295,9.00247683,166.75,166.66,13.69482768]
[1747450968014,7.60247683,166.74,166.66,13.69482768]
[1747450968810,13.00010187,166.74,166.66,13.69482768]
[1747450970117,5.39762504,166.74,166.66,13.69482768]
[1747450971630,18.8887445,166.77,166.66,13.69482768]
[1747450971918,7.60247683,166.75,166.69,26.0]
[1747450973319,5.39757433,166.75,166.69,26.0]
[1747450973527,7.60247683,166.76,166.69,31.99907335]
[1747450973708,7.60247683,166.78,166.69,31.99907335]
[1747450974010,7.60247683,166.78,166.7,1.5866]
[1747450975313,12.99892467,166.78,166.71,5.9984404]
[1747450976790,7.60247683,166.79,166.71,46.7584404]
[1747450977019,12.99783682,166.81,166.72,32.3712]
[1747450978614,7.60247683,166.8,166.72,38.36913496]
[1747450978914,7.60247683,166.79,166.72,32.3712]
[1747450979789,7.60247683,166.8,166.72,32.3712]
[1747450980436,7.60247683,166.78,166.72,26.0]
[1747450981609,5.39665407,166.77,166.71,20.38]
[1747450982002,12.9991309,166.77,166.71,20.38]
[1747450982419,5.39665407,166.77,166.71,20.38]
[1747450982601,5.39665407,166.77,166.7,74.32538615]
[1747450983318,5.39665407,166.77,166.7,68.3266]
[1747450984237,7.60247683,166.76,166.7,47.9666]
[1747450984427,7.60247683,166.74,166.7,47.9666]
[1747450984624,7.60247683,166.74,166.7,20.38]
[1747450984829,18.88828925,166.77,166.7,20.38]
[1747450984830,7.60247683,166.73,166.7,20.38]
[1747450985028,7.60247683,166.73,166.68,20.36]
[1747450985210,7.60247683,166.73,166.68,46.36]
[1747450985904,5.39827255,166.72,166.68,46.36]
[1747450987109,5.39827255,166.72,166.68,26.0]
[1747450990216,18.89301758,166.73,166.68,26.0]
[1747450992406,5.39794877,166.73,166.68,26.0]
[1747450993518,5.39633049,166.78,166.71,26.0]
[1747450993933,5.39633049,166.78,166.71,66.72]
[1747450994246,18.88657887,166.79,166.72,1.5915]
[1747450997451,5.39600695,166.79,166.73,18.64964886]
[1747450998346,5.39600695,166.79,166.72,7.58950042]
[1747450998551,5.39568345,166.8,166.72,7.58950042]
[1747450999567,5.39535999,166.81,166.72,7.58950042]
[1747450999861,18.88375996,166.81,166.72,7.58950042]
[1747451000776,5.39535999,166.81,166.75,26.0]
[1747451003263,5.39499726,166.83,166.76,18.64964886]
[1747451003425,5.39499726,166.83,166.77,40.64]
[1747451003631,5.39499726,166.83,166.78,1.617]
[1747451003848,5.39438983,166.84,166.78,1.617]
[1747451007274,5.39438983,166.84,166.78,7.6128572]
[1747451008241,5.39406652,166.85,166.78,7.6128572]
[1747451009675,12.99654335,166.85,166.78,1.617]
[1747451010269,7.60247683,166.84,166.78,1.617]
[1747451010574,7.60247683,166.83,166.78,1.617]
[1747451010738,7.60247683,166.83,166.77,46.32]
[1747451011451,5.39503656,166.82,166.77,46.32]
[1747451011885,12.99751339,166.82,166.77,46.32]
[1747451014575,26.4851048,166.82,166.77,20.32]
[1747451014800,7.60247683,166.8,166.77,20.32]
[1747451014974,7.60247683,166.79,166.74,1.6518]
[1747451015275,7.60247683,166.78,166.74,1.6518]
[1747451015853,7.60247683,166.77,166.72,20.32]
[1747451016057,7.60247683,166.75,166.72,20.32]
[1747451016383,7.60247683,166.8,166.72,20.32]
[1747451016384,7.60247683,166.74,166.72,20.32]
[1747451016677,7.60247683,166.75,166.72,20.32]
[1747451017389,5.39762504,166.74,166.72,20.32]
[1747451017888,7.60247683,166.73,166.69,1.6393]
[1747451018385,7.60247683,166.74,166.67,20.32]
[1747451018567,5.39737732,166.75,166.68,26.0]
[1747451018568,12.99985415,166.75,166.68,26.0]
[1747451019167,7.60247683,166.74,166.68,26.0]
[1747451019788,13.00034552,166.74,166.68,26.0]
[1747451019992,5.39786869,166.74,166.68,26.0]
[1747451020173,5.39786869,166.74,166.68,31.99947766]
[1747451020355,13.00034552,166.74,166.68,31.99947766]
[1747451020989,5.39786869,166.74,166.68,31.99947766]
[1747451021167,7.60247683,166.74,166.68,31.99947766]
[1747451021490,7.60247683,166.75,166.68,31.99947766]
[1747451022286,5.39762504,166.74,166.68,31.99947766]
[1747451025495,5.39762504,166.74,166.68,26.0]
[1747451025782,13.00010187,166.74,166.68,26.0]
[1747451025978,13.00010187,166.74,166.67,26.31979064]
[1747451025979,7.60247683,166.73,166.67,20.32]
[1747451026204,7.60247683,166.73,166.67,40.6]
[1747451027010,5.39827255,166.72,166.67,40.6]
[1747451027620,5.39827255,166.72,166.67,20.32]
[1747451028783,13.00051832,166.73,166.67,26.31971712]
[1747451029014,5.39804149,166.73,166.67,26.31971712]
[1747451029185,5.39765211,166.74,166.67,26.31971712]
[1747451030206,5.39765211,166.74,166.7,26.0]
[1747451030389,5.39730134,166.75,166.7,26.0]
[1747451031697,7.60247683,166.77,166.7,31.99873878]
[1747451032009,5.39633049,166.78,166.7,31.99873878]
[1747451032010,12.99880732,166.78,166.7,31.99873878]
[1747451032183,7.60247683,166.77,166.7,31.99873878]
[1747451032790,5.39692948,166.77,166.7,31.99873878]
[1747451033019,12.99940631,166.77,166.7,31.99873878]
[1747451033515,7.60247683,166.76,166.7,26.0]
[1747451035310,5.39730134,166.75,166.7,26.0]
[1747451038755,7.60247683,166.74,166.7,26.0]
[1747451040461,5.39794877,166.73,166.7,26.0]
[1747451040693,5.39794877,166.73,166.68,46.26]
[1747451040694,7.60247683,166.72,166.68,46.26]
[1747451042177,7.60247683,166.71,166.68,20.26]
[1747451042547,5.39892021,166.7,166.68,20.26]
[1747451043747,5.39870368,166.71,166.68,20.26]
[1747451045270,7.60247683,166.69,166.63,20.26]
[1747451045470,7.60247683,166.67,166.63,20.26]
[1747451046375,7.60247683,166.66,166.63,20.26]
[1747451046575,44.89519459,166.71,166.63,20.26]
[1747451046757,7.60247683,166.66,166.63,20.26]
[1747451047273,5.40054005,166.65,166.63,20.26]
[1747451047471,7.60247683,166.66,166.63,20.26]
[1747451047779,13.0026971,166.66,166.63,20.26]
[1747451048078,7.60247683,166.67,166.63,20.26]
[1747451048279,7.60247683,166.69,166.63,20.26]
[1747451048579,5.39827255,166.72,166.63,26.26124296]
[1747451048754,7.60247683,166.7,166.63,26.26124296]
[1747451048954,7.60247683,166.71,166.63,26.26124296]
[1747451049376,5.39892021,166.7,166.63,26.26124296]
[1747451049979,13.00139704,166.7,166.63,26.26124296]
[1747451055685,13.00116711,166.71,166.63,26.26124296]
[1747451056491,7.60247683,166.71,166.64,18.64964886]
[1747451056684,5.3981965,166.73,166.65,46.24]
[1747451056859,5.39697769,166.76,166.67,20.15554886]
[1747451057066,5.39697769,166.76,166.7,26.0]
[1747451057660,7.60247683,166.77,166.7,26.0]
[1747451057860,7.60247683,166.78,166.7,26.0]
[1747451058391,12.99848378,166.79,166.72,26.0]
[1747451058560,5.39600695,166.79,166.71,64.88964886]
[1747451058764,13.48736955,166.83,166.74,27.5059]
[1747451058967,12.99751339,166.82,166.75,5.99700149]
[1747451059173,5.39503656,166.82,166.75,5.99700149]
[1747451059478,12.99751339,166.82,166.75,5.99700149]
[1747451060087,18.88208273,166.83,166.75,5.99700149]
[1747451060385,7.60247683,166.82,166.75,5.99700149]
[1747451060685,5.39471318,166.83,166.75,26.25700149]
[1747451060860,5.39441028,166.84,166.78,26.0]
[1747451061060,12.99656346,166.85,166.78,46.22]
[1747451062074,12.99656346,166.85,166.79,5.99556328]
[1747451062693,7.60247683,166.84,166.78,46.22]
[1747451063067,7.60247683,166.84,166.78,26.0]
[1747451063774,7.60247683,166.84,166.78,31.99588975]
[1747451064171,12.99704286,166.84,166.78,31.99588975]
[1747451065070,5.39374325,166.86,166.78,31.99588975]
[1747451065275,5.39277368,166.89,166.78,31.99588975]
[1747451065474,7.60247683,166.86,166.78,31.99588975]
[1747451066591,1.4,166.9,166.83,1.5979]
[1747451066761,7.60247683,166.89,166.83,1.5979]
[1747451067094,7.60247683,166.88,166.83,1.5979]
[1747451068096,12.99565254,166.88,166.83,1.5979]
[1747451068498,7.60247683,166.85,166.8,26.0]
[1747451068694,7.60247683,166.84,166.79,21.7979]
[1747451070886,12.99703288,166.84,166.79,21.7979]
[1747451071406,7.60247683,166.83,166.79,20.2]
[1747451071573,7.60247683,166.81,166.75,41.9223]
[1747451071781,7.60247683,166.81,166.75,73.91921466]
[1747451073100,40.88366688,166.87,166.75,73.91921466]
[1747451073297,7.60247683,166.83,166.75,73.91921466]
[1747451074097,40.88366688,166.87,166.76,18.64964886]
[1747451074299,7.60247683,166.84,166.77,5.9962823]
[1747451075294,5.39340504,166.88,166.78,26.0]
[1747451075479,7.60247683,166.86,166.79,18.64964886]
[1747451076296,7.60247683,166.86,166.8,5.99520383]
[1747451077105,12.9961971,166.87,166.8,5.99520383]
[1747451078309,7.60247683,166.86,166.8,5.99520383]
[1747451079595,7.60247683,166.86,166.79,5.99556328]
[1747451079800,5.39367508,166.87,166.79,26.19556328]
[1747451080002,7.60247683,166.86,166.79,26.19556328]
[1747451081101,12.9963528,166.86,166.79,26.19556328]
[1747451082202,7.60247683,166.85,166.79,26.19556328]
[1747451083791,7.60247683,166.86,166.79,26.19556328]
[1747451085409,12.99623821,166.86,166.79,26.19556328]
[1747451086009,7.60247683,166.86,166.79,26.19556328]
[1747451089908,12.9962325,166.86,166.79,26.19556328]
[1747451091033,7.60247683,166.86,166.79,26.19556328]
[1747451092827,7.60247683,166.85,166.79,26.19556328]
[1747451094821,12.99662332,166.85,166.79,26.19556328]
[1747451098626,7.60247683,166.84,166.79,20.2]
[1747451098806,7.60247683,166.83,166.79,20.2]
[1747451100433,12.99726281,166.83,166.79,20.2]
[1747451101734,7.60247683,166.82,166.75,20.17194886]
[1747451101915,7.60247683,166.82,166.75,7.51918738]
[1747451102122,7.60247683,166.8,166.75,1.5223]
[1747451102349,7.60247683,166.79,166.74,5.99735464]
[1747451102515,7.60247683,166.79,166.74,31.99735464]
[1747451104212,13.18749136,166.84,166.74,31.99735464]
[1747451104534,7.60247683,166.82,166.74,31.99735464]
[1747451104757,5.39374325,166.86,166.77,26.0]
[1747451104909,7.60247683,166.84,166.77,26.0]
[1747451105528,7.60247683,166.84,166.78,5.99592277]
[1747451106711,7.60247683,166.83,166.78,5.99592277]
[1747451107221,7.60247683,166.82,166.78,5.99592277]
[1747451107659,7.60247683,166.83,166.78,5.99592277]
[1747451109724,7.60247683,166.82,166.77,33.5581781]
[1747451110143,7.60247683,166.81,166.76,26.1365531]
[1747451110446,5.39478113,166.83,166.76,26.1365531]
[1747451110740,7.60247683,166.82,166.76,26.1365531]
[1747451112243,7.60247683,166.82,166.76,20.14]
[1747451112443,7.60247683,166.81,166.76,20.14]
[1747451113317,5.39505842,166.82,166.76,20.14]
[1747451113318,7.60247683,166.8,166.76,20.14]
[1747451113638,12.99821262,166.8,166.76,20.14]
[1747451114514,7.60247683,166.78,166.7,359.12]
[1747451114715,7.60247683,166.76,166.71,20.14]
[1747451115022,7.60247683,166.75,166.71,20.14]
[1747451115627,13.00010187,166.74,166.71,20.14]
[1747451115951,7.60247683,166.73,166.71,20.14]
[1747451116331,7.60247683,166.72,166.68,20.1]
[1747451116529,7.60247683,166.71,166.68,20.1]
[1747451116853,7.60247683,166.71,166.66,20.14]
[1747451117643,5.39892021,166.7,166.65,7.7481]
[1747451117835,13.00139704,166.7,166.65,1.5392]
[1747451118031,7.60247683,166.69,166.65,1.5392]
[1747451120461,5.39892021,166.7,166.65,1.5392]
[1747451120628,7.60247683,166.69,166.65,1.5392]
[1747451121148,25.85,166.68,166.65,1.5392]
[1747451122048,25.85,166.68,166.65,7.53977725]
[1747451122962,7.60247683,166.72,166.65,7.53977725]
[1747451124061,7.60247683,166.72,166.65,1.5392]
[1747451124373,7.60247683,166.7,166.65,1.5392]
[1747451124561,7.60247683,166.68,166.64,20.14]
[1747451125166,7.60247683,166.68,166.63,26.0]
[1747451125366,7.60247683,166.67,166.63,26.0]
[1747451125673,7.60247683,166.67,166.62,54.25490647]
[1747451125853,13.00255051,166.67,166.62,54.25490647]
[1747451128157,7.60247683,166.66,166.62,54.25490647]
[1747451128366,7.60247683,166.65,166.62,20.08]
[1747451129567,5.40086413,166.64,166.62,20.08]
[1747451132965,13.00334096,166.64,166.62,20.08]
[1747451133362,7.60247683,166.63,166.57,26.4704]
[1747451133566,7.60247683,166.61,166.57,20.1]
[1747451134563,7.60247683,166.6,166.57,20.1]
[1747451134983,7.60247683,166.59,166.57,20.1]
[1747451135593,13.00517504,166.59,166.57,20.1]
[1747451138465,7.60247683,166.61,166.57,20.1]
[1747451138686,7.60247683,166.62,166.57,20.1]
[1747451139193,7.60247683,166.61,166.57,20.1]
[1747451140189,13.0045191,166.61,166.57,20.1]
[1747451141992,9.1883,166.66,166.57,20.1]
[1747451141993,2.9131,166.66,166.57,20.1]
[1747451142196,7.60247683,166.63,166.57,46.1]
[1747451142364,7.60247683,166.64,166.57,52.10343591]
[1747451143582,13.00358378,166.64,166.57,52.10343591]
[1747451144097,7.60247683,166.64,166.57,52.10343591]
[1747451144301,13.00340813,166.64,166.57,52.10343591]
[1747451145404,7.60247683,166.63,166.57,52.10343591]
[1747451146089,7.60247683,166.62,166.57,52.10343591]
[1747451146594,7.60247683,166.63,166.57,52.10343591]
[1747451147791,7.60247683,166.62,166.57,52.10343591]
[1747451148489,7.60247683,166.63,166.57,52.10343591]
[1747451148687,7.60247683,166.64,166.57,52.10343591]
[1747451148891,7.60247683,166.63,166.57,52.10343591]
[1747451150195,7.60247683,166.62,166.57,52.10343591]
[1747451150874,7.60247683,166.61,166.57,52.10343591]
[1747451155898,7.60247683,166.62,166.57,52.10343591]
[1747451157686,7.60247683,166.61,166.57,52.10343591]
[1747451161116,7.60247683,166.6,166.57,20.1]
[1747451162792,7.60247683,166.6,166.56,1.6319]
[1747451163710,7.60247683,166.6,166.56,7.63572711]
[1747451165220,7.60247683,166.59,166.56,7.63572711]
[1747451165810,7.60247683,166.6,166.56,7.63572711]
[1747451166014,7.60247683,166.62,166.56,7.63572711]
[1747451167715,7.60247683,166.62,166.56,27.67572711]
[1747451170624,7.60247683,166.61,166.56,27.67572711]
[1747451170925,7.60247683,166.62,166.56,27.67572711]
[1747451175226,13.00406549,166.62,166.56,27.67572711]
[1747451175413,7.60247683,166.61,166.56,27.67572711]
[1747451177224,7.60247683,166.61,166.56,7.63572711]
[1747451177431,7.60247683,166.62,166.56,7.63572711]
[1747451181420,13.00402989,166.62,166.56,7.63572711]
[1747451183433,7.60247683,166.61,166.56,7.63572711]
[1747451184738,7.60247683,166.6,166.56,1.6319]
[1747451184920,7.60247683,166.59,166.56,1.6319]
[1747451185116,7.60247683,166.59,166.55,20.04]
[1747451185318,7.60247683,166.59,166.54,32.00425354]
[1747451185530,7.60247683,166.59,166.54,52.00425354]
[1747451186958,7.60247683,166.6,166.54,52.00425354]
[1747451189040,7.60247683,166.62,166.54,52.00425354]
[1747451190362,7.60247683,166.61,166.54,52.00425354]
[1747451191147,7.60247683,166.6,166.54,52.00425354]
[1747451191347,13.00474479,166.6,166.54,52.00425354]
[1747451196055,7.60247683,166.59,166.54,46.0]
[1747451198029,7.60247683,166.56,166.52,1.5107]
[1747451198255,7.60247683,166.56,166.52,21.5107]
[1747451198459,7.60247683,166.56,166.52,27.51594096]
[1747451198856,7.60247683,166.56,166.52,21.5107]
[1747451199768,5.40274061,166.59,166.52,20.0]
[1747451199769,7.60247683,166.55,166.52,20.0]
[1747451200142,13.00626577,166.55,166.52,20.0]
[1747451200343,7.60247683,166.55,166.52,20.0]
[1747451200565,13.00627977,166.55,166.52,20.0]
[1747451202472,7.60247683,166.54,166.52,20.0]
[1747451202672,7.60247683,166.53,166.52,20.0]
[1747451202870,7.60247683,166.53,166.48,1.5554]
[1747451203174,7.60247683,166.51,166.48,1.5554]
[1747451203361,7.60247683,166.51,166.47,20.0]
[1747451203666,7.60247683,166.5,166.47,20.0]
[1747451206171,13.00792877,166.5,166.47,20.0]
[1747451207443,7.60247683,166.49,166.47,20.0]
[1747451207646,7.60247683,166.48,166.39,38.64964886]
[1747451207841,5.4054054,166.5,166.4,8.133]
[1747451208073,7.60247683,166.48,166.41,44.64964886]
[1747451208275,7.60247683,166.48,166.41,18.64964886]
[1747451208565,7.60247683,166.48,166.41,44.64964886]
[1747451209072,7.60247683,166.48,166.41,18.64964886]
[1747451209256,7.60247683,166.48,166.42,6.00889316]
[1747451211869,7.60247683,166.49,166.42,6.00889316]
[1747451212077,7.60247683,166.48,166.42,6.00889316]
[1747451212647,18.91488154,166.54,166.41,179.34964886]
[1747451212648,7.60247683,166.47,166.44,26.0]
[1747451212852,7.60247683,166.47,166.41,134.7]
[1747451212853,7.60247683,166.47,166.43,26.0]
[1747451213873,13.00898169,166.47,166.43,26.0]
[1747451214875,13.51297754,166.51,166.43,26.0]
[1747451215174,7.60247683,166.48,166.43,26.0]
[1747451215976,7.60247683,166.46,166.4,8.133]
[1747451216149,7.60247683,166.43,166.4,1.6058]
[1747451216356,7.60247683,166.42,166.39,20.0]
[1747451216572,7.60247683,166.42,166.39,46.0]
[1747451217153,13.01067781,166.42,166.39,46.0]
[1747451217862,7.60247683,166.41,166.39,46.0]
[1747451218048,7.60247683,166.41,166.39,20.0]
[1747451218776,13.0109181,166.41,166.39,20.0]
[1747451219076,7.60247683,166.43,166.39,20.0]
[1747451219251,5.40702913,166.45,166.39,20.0]
[1747451219458,7.60247683,166.44,166.39,20.0]
[1747451219674,7.60247683,166.43,166.39,20.0]
[1747451220375,7.60247683,166.42,166.39,20.0]
[1747451220587,7.60247683,166.41,166.39,20.0]
[1747451220768,5.40865384,166.4,166.39,20.0]
[1747451221972,13.01088956,166.41,166.39,20.0]
[1747451223495,7.60247683,166.4,166.39,20.0]
[1747451223691,7.60247683,166.4,166.35,19.96]
[1747451223897,7.60247683,166.38,166.34,19.96]
[1747451224060,18.92923479,166.41,166.34,19.96]
[1747451224061,7.60247683,166.37,166.34,19.96]
[1747451225387,13.01219072,166.37,166.34,19.96]
[1747451226459,5.40971389,166.37,166.34,19.96]
[1747451227374,13.01219072,166.37,166.34,19.96]
[1747451227766,7.60247683,166.36,166.34,19.96]
[1747451228807,5.41006443,166.36,166.34,19.96]
[1747451233698,13.52062142,166.42,166.34,19.96]
[1747451233995,7.60247683,166.39,166.34,19.96]
[1747451234371,13.52062142,166.42,166.34,19.96]
[1747451234575,7.60247683,166.38,166.34,19.96]
[1747451236177,5.40962913,166.37,166.34,19.96]
[1747451236364,5.40939981,166.38,166.34,19.96]
[1747451237279,13.01187664,166.38,166.34,19.96]
[1747451240576,7.60247683,166.36,166.34,19.96]
[1747451242396,7.60247683,166.35,166.3,22.96]
[1747451242593,13.01308161,166.34,166.3,22.96]
[1747451243475,7.60247683,166.33,166.3,22.96]
[1747451244577,5.41125541,166.32,166.3,22.96]
[1747451245604,13.01373224,166.32,166.3,22.96]
[1747451245788,7.60247683,166.31,166.3,22.96]
[1747451246809,13.01405761,166.31,166.3,22.96]
[1747451246981,13.01405761,166.31,166.3,3.0]
[1747451257311,14.41405761,166.31,166.3,3.0]
[1747451260729,6.81158078,166.31,166.3,3.0]
[1747451260892,14.41405761,166.31,166.3,3.0]
[1747451262110,6.81158078,166.31,166.3,3.0]
[1747451262314,14.41405761,166.31,166.3,3.0]
[1747451263397,13.01405761,166.31,166.3,3.0]
[1747451265023,57.66370647,166.31,166.3,3.0]
[1747451266746,13.01405761,166.31,166.3,3.0]
[1747451277337,5.41158078,166.31,166.3,3.0]
[1747451277647,13.01405761,166.31,166.3,3.0]
[1747451278431,7.60247683,166.31,166.3,3.0]
[1747451280948,13.01405761,166.31,166.3,3.0]
[1747451292969,5.41158078,166.31,166.3,3.0]
[1747451293176,13.01405761,166.31,166.3,3.0]
[1747451298537,5.41158078,166.31,166.3,3.0]
[1747451298857,13.01405761,166.31,166.3,3.0]
[1747451305576,5.41158078,166.31,166.3,3.0]
[1747451305764,13.01405761,166.31,166.3,3.0]
[1747451314277,14.41405761,166.31,166.3,3.0]
[1747451314611,26.0,166.28,166.22,8.058]
[1747451314764,7.60247683,166.23,166.22,1.5971]
[1747451315656,5.41451088,166.22,166.19,19.8]
[1747451315977,7.60247683,166.2,166.19,19.8]
[1747451317469,7.60247683,166.2,166.18,8.2754]
[1747451317664,13.01796512,166.19,166.18,1.6245]
[1747451317863,13.01796512,166.19,166.14,27.7967]
[1747451318157,7.60247683,166.16,166.14,27.7967]
[1747451318889,7.60247683,166.17,166.14,27.7967]
[1747451319059,7.60247683,166.16,166.14,27.7967]
[1747451319262,7.60247683,166.16,166.14,7.9967]
[1747451319760,18.95420903,166.19,166.14,7.9967]
[1747451319761,5.41679205,166.15,166.14,7.9967]
[1747451320782,26.0,166.22,166.14,7.9967]
[1747451320783,7.60247683,166.18,166.14,7.9967]
[1747451322185,13.01847046,166.18,166.14,7.9967]
[1747451326284,13.53505679,166.24,166.15,44.64964886]
[1747451326488,7.60247683,166.23,166.16,1.5416]
[1747451327365,13.01666199,166.23,166.16,1.5416]
[1747451327990,7.60247683,166.22,166.16,1.5416]
[1747451329191,5.41483665,166.21,166.16,1.5416]
[1747451332467,5.41483665,166.21,166.16,21.3216]
[1747451334386,13.01731348,166.21,166.16,21.3216]
[1747451336994,13.01731348,166.21,166.16,1.5416]
[1747451337472,5.41483665,166.21,166.16,1.5416]
[1747451339693,13.01731348,166.21,166.16,1.5416]
[1747451344493,5.41483665,166.21,166.16,1.5416]
[1747451344672,13.01731348,166.21,166.16,1.5416]
[1747451344879,5.41483665,166.21,166.16,1.5416]
[1747451347305,5.41418516,166.23,166.16,7.55980168]
[1747451347504,5.41418516,166.23,166.17,19.76]
[1747451348484,5.41385948,166.24,166.17,19.76]
[1747451348814,13.01633631,166.24,166.17,19.76]
[1747451349413,13.01633631,166.24,166.17,25.77787896]
[1747451350688,13.01633631,166.24,166.17,19.76]
[1747451351118,7.60247683,166.2,166.16,1.5416]
[1747451351285,7.60247683,166.19,166.16,21.3016]
[1747451351797,7.60247683,166.19,166.15,26.0]
[1747451352213,5.41581417,166.18,166.15,26.0]
[1747451353420,5.41581417,166.18,166.14,26.0]
[1747451354409,7.60247683,166.18,166.14,26.0]
[1747451355624,5.41614009,166.17,166.14,26.0]
[1747451356018,5.41516245,166.2,166.14,26.0]
[1747451356318,5.41516245,166.2,166.14,32.01899609]
[1747451357825,5.41516245,166.2,166.14,26.0]
[1747451359427,7.60247683,166.19,166.14,26.0]
[1747451361432,5.41581417,166.18,166.14,26.0]
[1747451362310,5.41451088,166.22,166.14,26.0]
[1747451362510,13.01698771,166.22,166.14,26.0]
[1747451363632,5.41516245,166.2,166.14,26.0]
[1747451363802,13.01763928,166.2,166.14,26.0]
[1747451365534,5.41516245,166.2,166.14,26.0]
[1747451367253,7.60247683,166.2,166.14,26.0]
[1747451368250,5.41548829,166.19,166.14,26.0]
[1747451369168,5.41548829,166.19,166.14,32.0189641]
[1747451369340,5.41548829,166.19,166.14,26.0]
[1747451369767,5.41548829,166.19,166.15,19.76]